bitfinex/quotes_SOLUSD_20230905
["timestamp","ask_amount","ask_price","bid_price","bid_amount"]
[1693928281582,7.65,20.392,20.377,7.655]
[1693928281767,55.0,20.391,20.377,7.655]
[1693928281967,62.65,20.391,20.377,7.655]
[1693928282568,87.366,20.391,20.374,7.656]
[1693928282769,87.366,20.391,20.375,20.0]
[1693928283379,87.366,20.391,20.373,27.656]
[1693928283880,62.65,20.391,20.374,2.89215141]
[1693928284079,62.65,20.391,20.374,10.54815141]
[1693928284280,62.65,20.391,20.376,10.54715141]
[1693928284480,62.65,20.391,20.376,7.655]
[1693928284679,55.0,20.391,20.376,7.655]
[1693928285270,96.617,20.397,20.376,7.655]
[1693928285477,7.649,20.395,20.376,7.655]
[1693928285879,7.649,20.395,20.377,2.70108403]
[1693928286075,7.649,20.395,20.379,7.654]
[1693928286586,55.0,20.394,20.379,7.654]
[1693928286774,7.649,20.393,20.379,7.654]
[1693928286974,55.0,20.392,20.379,7.654]
[1693928287384,96.617,20.397,20.379,7.654]
[1693928287681,96.617,20.397,20.38,2.51934796]
[1693928287877,104.265,20.397,20.38,10.17334796]
[1693928288481,104.265,20.397,20.38,7.654]
[1693928289187,96.617,20.397,20.38,7.654]
[1693928289775,7.648,20.396,20.38,7.654]
[1693928290579,55.0,20.395,20.38,7.654]
[1693928290774,55.0,20.395,20.378,24.731]
[1693928290775,7.649,20.394,20.379,7.654]
[1693928290979,55.0,20.393,20.375,20.0]
[1693928291180,7.651,20.388,20.375,27.656]
[1693928291381,55.0,20.387,20.375,27.656]
[1693928292091,7.649,20.393,20.375,27.656]
[1693928292476,96.617,20.397,20.375,27.656]
[1693928292477,96.617,20.397,20.376,0.60634446]
[1693928292683,7.648,20.395,20.381,7.653]
[1693928292879,0.91488182,20.394,20.381,7.653]
[1693928293079,7.65,20.392,20.379,7.654]
[1693928293681,55.0,20.391,20.379,7.654]
[1693928294282,96.617,20.397,20.379,7.654]
[1693928294483,104.265,20.397,20.379,7.654]
[1693928294790,0.51204996,20.396,20.375,73.99]
[1693928294999,7.65,20.391,20.378,7.655]
[1693928295180,7.65,20.391,20.375,20.0]
[1693928295492,7.65,20.391,20.376,7.655]
[1693928295681,55.0,20.39,20.376,7.655]
[1693928296385,55.0,20.392,20.376,7.655]
[1693928296709,62.65,20.392,20.376,7.655]
[1693928297784,62.65,20.392,20.377,0.49651025]
[1693928297979,96.617,20.397,20.381,7.653]
[1693928298183,8.24108329,20.396,20.381,7.653]
[1693928298395,32.95108329,20.396,20.379,7.654]
[1693928299088,32.358,20.396,20.379,7.654]
[1693928299287,7.648,20.396,20.379,7.654]
[1693928299488,1.02773955,20.395,20.379,7.654]
[1693928299693,7.649,20.394,20.379,7.654]
[1693928299998,7.65,20.392,20.379,7.654]
[1693928300192,55.0,20.391,20.377,7.655]
[1693928300390,62.65,20.391,20.377,7.655]
[1693928301101,55.0,20.391,20.377,7.655]
[1693928301398,55.0,20.393,20.377,7.655]
[1693928301598,7.65,20.392,20.377,7.655]
[1693928301792,55.0,20.391,20.377,7.655]
[1693928302203,7.65,20.392,20.377,7.655]
[1693928302803,7.649,20.395,20.377,7.655]
[1693928302994,0.54871673,20.394,20.377,7.655]
[1693928303301,7.649,20.393,20.377,7.655]
[1693928303797,7.65,20.39,20.377,7.655]
[1693928303995,7.651,20.388,20.375,27.656]
[1693928304189,55.0,20.387,20.375,20.0]
[1693928304500,55.0,20.387,20.369,76.768081]
[1693928304688,55.0,20.387,20.37,20.92215614]
[1693928304889,62.652,20.387,20.375,7.656]
[1693928305101,97.8323,20.386,20.37,44.741]
[1693928305402,97.8323,20.386,20.373,7.657]
[1693928305403,62.652,20.385,20.373,7.657]
[1693928305787,62.652,20.385,20.368,7.658]
[1693928306089,11.54648312,20.384,20.364,7.66]
[1693928306402,7.655,20.378,20.361,7.661]
[1693928306593,57.06365433,20.377,20.361,7.661]
[1693928306783,7.656,20.376,20.361,7.661]
[1693928306988,57.06365433,20.375,20.361,7.661]
[1693928307197,64.71965433,20.375,20.361,7.661]
[1693928307496,62.656,20.375,20.361,7.661]
[1693928308097,7.657,20.373,20.361,7.661]
[1693928308299,55.0,20.372,20.361,7.661]
[1693928308696,62.657,20.372,20.355,54.038]
[1693928308897,62.657,20.372,20.359,7.662]
[1693928313195,55.0,20.372,20.359,7.662]
[1693928313398,55.0,20.373,20.359,7.662]
[1693928314106,7.657,20.372,20.359,7.662]
[1693928314401,55.0,20.371,20.359,7.662]
[1693928314985,62.657,20.373,20.359,7.662]
[1693928315394,97.6,20.374,20.359,7.662]
[1693928316803,55.0,20.373,20.359,7.662]
[1693928317004,0.75562231,20.372,20.359,7.662]
[1693928317700,55.0,20.373,20.359,7.662]
[1693928317910,97.6,20.374,20.359,7.662]
[1693928318503,7.655,20.377,20.359,7.662]
[1693928318803,98.87582574,20.376,20.359,7.662]
[1693928319406,91.21982574,20.376,20.359,7.662]
[1693928319615,98.87582574,20.376,20.359,7.662]
[1693928319793,8.37922574,20.376,20.359,7.662]
[1693928320110,97.5141,20.375,20.359,7.662]
[1693928320300,1.18545101,20.374,20.359,7.662]
[1693928320794,56.18545101,20.374,20.359,7.662]
[1693928321205,1.18545101,20.374,20.359,7.662]
[1693928321419,97.5141,20.382,20.36,101.49010739]
[1693928321707,1.74292455,20.381,20.366,184.122]
[1693928322017,14.40176816,20.39,20.367,24.86366537]
[1693928322191,7.653,20.384,20.368,7.659]
[1693928322512,7.655,20.378,20.365,7.66]
[1693928322692,2.59508383,20.382,20.365,7.66]
[1693928322892,7.654,20.381,20.365,7.66]
[1693928323093,2.59508383,20.38,20.365,7.66]
[1693928323700,2.59508383,20.38,20.365,32.408]
[1693928324210,95.7834,20.386,20.371,86.393]
[1693928324411,95.7834,20.386,20.376,7.655]
[1693928324612,7.65,20.392,20.376,7.655]
[1693928324913,96.90799802,20.391,20.376,7.655]
[1693928325100,1.12459802,20.389,20.376,7.655]
[1693928326111,1.12459802,20.39,20.376,7.655]
[1693928326695,8.77459802,20.39,20.376,7.655]
[1693928327101,8.77459802,20.39,20.373,7.656]
[1693928327399,30.16552292,20.389,20.374,7.656]
[1693928327700,7.652,20.387,20.374,7.656]
[1693928327897,57.59508383,20.386,20.372,7.657]
[1693928328098,7.653,20.384,20.369,7.658]
[1693928328307,57.59508383,20.383,20.369,7.658]
[1693928328808,2.59508383,20.381,20.369,7.658]
[1693928329008,2.59508383,20.383,20.369,7.658]
[1693928330501,2.59508383,20.386,20.369,32.52166537]
[1693928331308,10.24708383,20.386,20.369,32.52166537]
[1693928331511,7.651,20.389,20.369,32.52166537]
[1693928331708,2.59508383,20.391,20.376,32.39]
[1693928332013,7.647,20.399,20.377,25.79958581]
[1693928332210,2.59508383,20.398,20.383,7.653]
[1693928332402,2.59508383,20.398,20.384,20.0]
[1693928332708,10.24308383,20.398,20.386,7.652]
[1693928333100,10.24308383,20.398,20.384,27.653]
[1693928333611,10.24308383,20.398,20.384,7.653]
[1693928333810,74.33460675,20.398,20.38,91.1268]
[1693928334112,7.65,20.391,20.376,7.655]
[1693928334410,10.24608383,20.389,20.376,7.655]
[1693928334712,55.0,20.388,20.376,7.655]
[1693928334903,2.59508383,20.387,20.376,7.655]
[1693928335300,2.59508383,20.388,20.376,7.655]
[1693928336409,54.96608383,20.388,20.372,7.657]
[1693928336608,55.0,20.387,20.369,7.658]
[1693928336799,7.653,20.382,20.369,7.658]
[1693928337000,57.59508383,20.381,20.369,7.658]
[1693928337297,7.654,20.38,20.36,97.736]
[1693928337496,7.655,20.377,20.366,7.659]
[1693928337692,56.58153375,20.376,20.361,7.661]
[1693928337913,56.58153375,20.376,20.359,7.662]
[1693928338103,7.657,20.371,20.359,7.662]
[1693928338306,53.977,20.379,20.359,7.662]
[1693928338307,55.0,20.37,20.359,7.662]
[1693928339209,0.91663917,20.371,20.359,7.662]
[1693928339402,62.657,20.372,20.359,7.662]
[1693928339604,7.658,20.37,20.356,7.663]
[1693928339805,56.74172806,20.369,20.356,7.663]
[1693928340314,55.0,20.368,20.356,7.663]
[1693928340615,55.0,20.37,20.356,7.663]
[1693928340819,100.1924,20.371,20.356,7.663]
[1693928341809,0.98703917,20.37,20.356,7.663]
[1693928342009,7.656,20.376,20.356,7.663]
[1693928342213,0.70811477,20.379,20.363,86.426]
[1693928342402,40.7316904,20.379,20.364,7.66]
[1693928342715,1.62200624,20.374,20.36,7.661]
[1693928343012,7.657,20.372,20.36,7.661]
[1693928343211,7.656,20.376,20.36,7.661]
[1693928343398,1.62200624,20.375,20.36,7.661]
[1693928343595,7.656,20.376,20.36,7.661]
[1693928343795,1.8270357,20.374,20.36,7.661]
[1693928344001,9.4830357,20.374,20.36,7.661]
[1693928344210,1.8270357,20.372,20.36,7.661]
[1693928344410,55.0,20.373,20.36,7.661]
[1693928344599,7.656,20.374,20.36,7.661]
[1693928345004,1.85912914,20.373,20.358,7.662]
[1693928345317,7.657,20.372,20.358,7.662]
[1693928345614,1.85912914,20.371,20.358,7.662]
[1693928345918,96.71552914,20.371,20.358,7.662]
[1693928346216,55.0,20.37,20.358,7.662]
[1693928346717,62.658,20.37,20.352,54.046]
[1693928346921,2.38583685,20.369,20.356,7.663]
[1693928347119,7.66,20.366,20.356,7.663]
[1693928347416,55.0,20.365,20.355,7.663]
[1693928348713,55.0,20.366,20.355,7.663]
[1693928349423,55.0,20.366,20.353,20.0]
[1693928349424,7.66,20.365,20.353,20.0]
[1693928349607,7.66,20.363,20.35,7.665]
[1693928349812,7.662,20.36,20.35,7.665]
[1693928350114,7.661,20.363,20.35,7.665]
[1693928350717,55.0,20.362,20.35,7.665]
[1693928351517,7.659,20.366,20.35,7.665]
[1693928351711,56.41040996,20.365,20.35,7.665]
[1693928351911,62.659,20.366,20.35,7.665]
[1693928352111,62.659,20.366,20.351,0.7531353]
[1693928352308,62.659,20.366,20.355,7.663]
[1693928352612,62.659,20.366,20.348,54.057]
[1693928352820,1.56006869,20.365,20.353,7.664]
[1693928353128,7.661,20.363,20.347,49.538]
[1693928353419,55.0,20.362,20.352,7.665]
[1693928354520,95.1891,20.361,20.352,7.665]
[1693928354817,55.0,20.36,20.352,7.665]
[1693928356321,7.662,20.359,20.343,14.82309582]
[1693928356526,55.0,20.358,20.344,20.0]
[1693928356737,7.664,20.354,20.344,20.0]
[1693928357218,7.664,20.354,20.343,27.668]
[1693928357219,55.0,20.353,20.343,27.668]
[1693928357402,7.665,20.352,20.341,14.83194102]
[1693928357607,101.8171,20.352,20.341,14.83194102]
[1693928357812,7.666,20.349,20.341,14.83194102]
[1693928358019,7.666,20.349,20.338,7.67]
[1693928358217,55.0,20.348,20.333,7.672]
[1693928358424,7.668,20.344,20.333,7.672]
[1693928358829,7.668,20.344,20.334,0.51911883]
[1693928359122,62.666,20.348,20.336,7.671]
[1693928359333,7.663,20.357,20.336,7.671]
[1693928359620,2.30595286,20.367,20.348,184.285]
[1693928359821,2.59508383,20.37,20.348,184.285]
[1693928360118,7.659,20.367,20.354,7.664]
[1693928360330,2.59508383,20.373,20.354,7.664]
[1693928360331,2.59508383,20.373,20.355,20.0]
[1693928360619,39.82694198,20.376,20.36,7.661]
[1693928360817,93.7779,20.378,20.361,47.2131919]
[1693928361322,7.653,20.383,20.367,2.34952653]
[1693928361523,93.7779,20.381,20.371,7.657]
[1693928361917,250.76453741,20.413,20.371,7.657]
[1693928361918,64.67275675,20.391,20.371,7.657]
[1693928362119,96.4756,20.39,20.372,24.86366537]
[1693928362328,1.31902735,20.389,20.377,32.388]
[1693928362719,1.31902735,20.389,20.377,7.655]
[1693928362921,1.31902735,20.389,20.371,24.74]
[1693928362922,7.651,20.389,20.371,24.74]
[1693928363229,57.51599113,20.388,20.374,7.656]
[1693928363416,7.653,20.384,20.374,7.656]
[1693928363619,57.51599113,20.383,20.374,7.656]
[1693928364019,7.653,20.382,20.371,7.657]
[1693928364240,57.51599113,20.381,20.371,7.657]
[1693928364547,55.0,20.381,20.371,7.657]
[1693928365238,0.6446816,20.38,20.371,7.657]
[1693928365536,55.0,20.381,20.371,7.657]
[1693928365712,7.654,20.38,20.365,24.747]
[1693928365908,7.655,20.377,20.367,7.659]
[1693928366113,1.16158232,20.376,20.367,7.659]
[1693928366324,56.16158232,20.376,20.367,7.659]
[1693928366933,56.16158232,20.376,20.355,112.54818918]
[1693928366934,63.81758232,20.376,20.365,7.66]
[1693928367117,63.81758232,20.376,20.362,7.661]
[1693928367313,62.656,20.376,20.362,7.661]
[1693928367512,94.6881,20.375,20.362,32.412]
[1693928367719,55.0,20.374,20.362,32.412]
[1693928368010,62.657,20.374,20.362,7.661]
[1693928368219,55.0,20.374,20.362,7.661]
[1693928369818,7.656,20.377,20.362,7.661]
[1693928370020,8.2184626,20.38,20.368,7.658]
[1693928370221,7.654,20.38,20.368,7.658]
[1693928370428,7.654,20.38,20.365,7.66]
[1693928370629,1.17015095,20.379,20.365,7.66]
[1693928370832,1.17015095,20.379,20.354,157.22668855]
[1693928371016,7.656,20.375,20.36,1.62096378]
[1693928371333,7.656,20.375,20.362,7.66]
[1693928371519,55.0,20.374,20.362,7.66]
[1693928371720,62.657,20.374,20.362,7.66]
[1693928372149,55.0,20.374,20.363,0.57097593]
[1693928372430,55.0,20.374,20.366,7.659]
[1693928372621,55.0,20.376,20.366,7.659]
[1693928373022,55.0,20.376,20.364,7.66]
[1693928373023,62.656,20.376,20.364,7.66]
[1693928373221,0.52413269,20.375,20.361,7.661]
[1693928373414,7.658,20.371,20.358,7.662]
[1693928373619,7.658,20.371,20.352,1.9471758]
[1693928373819,7.66,20.365,20.352,7.664]
[1693928374222,55.0,20.364,20.352,7.664]
[1693928374415,7.659,20.368,20.352,7.664]
[1693928374620,55.0,20.367,20.353,0.83241745]
[1693928374824,55.0,20.367,20.357,7.663]
[1693928375140,62.659,20.367,20.357,7.663]
[1693928375434,92.5886,20.366,20.357,7.663]
[1693928375636,62.66,20.365,20.354,7.664]
[1693928375935,55.0,20.365,20.356,7.663]
[1693928376616,7.66,20.366,20.356,7.663]
[1693928376822,55.0,20.365,20.356,7.663]
[1693928377133,55.0,20.367,20.356,7.663]
[1693928377544,55.0,20.367,20.357,1.04090923]
[1693928377834,90.3139,20.37,20.36,7.662]
[1693928379230,90.3139,20.37,20.358,7.662]
[1693928379231,7.658,20.369,20.358,7.662]
[1693928379426,7.658,20.369,20.357,7.662]
[1693928380236,55.0,20.368,20.357,7.662]
[1693928380446,7.659,20.367,20.353,24.763]
[1693928380736,55.0,20.366,20.354,20.80417111]
[1693928381035,55.0,20.366,20.354,27.664]
[1693928381036,7.66,20.365,20.354,27.664]
[1693928381239,55.0,20.364,20.355,0.80106948]
[1693928381533,55.0,20.364,20.357,7.662]
[1693928381841,55.0,20.364,20.354,20.0]
[1693928381842,55.0,20.364,20.355,0.84251355]
[1693928383121,62.66,20.364,20.355,0.84251355]
[1693928383326,55.0,20.364,20.355,7.663]
[1693928383527,7.659,20.366,20.355,7.663]
[1693928384717,7.659,20.366,20.349,81.719]
[1693928384922,7.66,20.364,20.353,0.59241436]
[1693928385118,7.66,20.364,20.352,7.664]
[1693928385324,55.0,20.363,20.353,7.664]
[1693928385939,62.661,20.363,20.353,7.664]
[1693928386124,62.661,20.363,20.347,7.666]
[1693928386321,62.661,20.363,20.351,7.665]
[1693928386925,55.0,20.363,20.351,7.665]
[1693928387125,40.21218074,20.368,20.352,1.97375135]
[1693928387334,7.659,20.368,20.356,7.663]
[1693928388138,32.403,20.368,20.353,7.664]
[1693928388625,32.403,20.368,20.355,7.663]
[1693928388823,7.659,20.368,20.355,7.663]
[1693928389028,55.0,20.367,20.355,7.663]
[1693928389222,97.9719,20.37,20.355,7.663]
[1693928389428,20.0,20.369,20.356,0.61471572]
[1693928389632,27.659,20.369,20.357,7.662]
[1693928390729,55.0,20.368,20.357,7.662]
[1693928391939,90.3139,20.37,20.357,7.662]
[1693928392127,90.3139,20.37,20.358,1.27587641]
[1693928392328,90.3139,20.37,20.36,7.661]
[1693928393340,55.0,20.369,20.36,7.661]
[1693928393545,62.658,20.369,20.36,7.661]
[1693928393844,62.658,20.369,20.354,24.761]
[1693928394058,62.658,20.369,20.355,20.85001655]
[1693928394550,62.658,20.369,20.355,20.0]
[1693928395132,62.658,20.369,20.356,8.54322686]
[1693928397832,20.0,20.368,20.354,7.664]
[1693928398045,7.66,20.365,20.354,7.664]
[1693928398554,55.0,20.364,20.354,7.664]
[1693928399227,55.0,20.366,20.354,7.664]
[1693928399431,90.3139,20.37,20.354,7.664]
[1693928399628,24.732,20.378,20.355,1.97250472]
[1693928399839,7.656,20.376,20.361,7.661]
[1693928400239,7.656,20.376,20.362,1.97250472]
[1693928400435,39.7051597,20.38,20.366,7.659]
[1693928400635,7.655,20.378,20.366,7.659]
[1693928401449,98.3165,20.38,20.366,7.659]
[1693928401760,8.96072679,20.379,20.366,7.659]
[1693928402058,28.96072679,20.379,20.366,7.659]
[1693928402551,8.96072679,20.379,20.366,7.659]
[1693928402749,1.30572679,20.379,20.366,7.659]
[1693928402937,1.30572679,20.38,20.366,7.659]
[1693928403246,7.654,20.381,20.366,7.659]
[1693928403438,0.56830184,20.38,20.366,7.659]
[1693928403836,1.35951116,20.384,20.367,0.59168321]
[1693928404034,41.50956289,20.388,20.372,32.396]
[1693928404641,2.1657515,20.388,20.372,32.396]
[1693928404945,7.65,20.39,20.377,7.655]
[1693928405150,2.59508383,20.391,20.377,7.655]
[1693928405346,7.65,20.391,20.377,7.655]
[1693928405737,2.59508383,20.389,20.377,7.655]
[1693928406138,10.24608383,20.389,20.377,7.655]
[1693928406441,0.73870325,20.388,20.377,7.655]
[1693928406631,8.38970325,20.388,20.377,7.655]
[1693928407036,7.651,20.388,20.372,34.880523]
[1693928407250,7.651,20.388,20.373,7.656]
[1693928407251,1.98403381,20.387,20.373,7.656]
[1693928407447,1.98403381,20.387,20.374,7.656]
[1693928407448,7.652,20.385,20.374,7.656]
[1693928408151,55.0,20.384,20.37,7.657]
[1693928408349,7.654,20.38,20.37,7.657]
[1693928408556,9.63703381,20.383,20.37,7.657]
[1693928408939,7.653,20.383,20.37,7.657]
[1693928410042,62.654,20.382,20.37,7.657]
[1693928410441,62.654,20.382,20.361,78.88766537]
[1693928410649,1.09737492,20.381,20.362,20.0]
[1693928410854,7.655,20.378,20.368,7.658]
[1693928411049,55.0,20.377,20.368,7.658]
[1693928411435,90.0426,20.38,20.368,7.658]
[1693928411436,55.0,20.379,20.368,7.658]
[1693928413444,62.655,20.379,20.368,7.658]
[1693928416647,62.655,20.379,20.365,7.659]
[1693928417256,0.61801024,20.378,20.365,7.659]
[1693928417452,7.655,20.377,20.365,7.659]
[1693928417650,7.657,20.372,20.361,7.661]
[1693928417866,7.657,20.372,20.358,0.6193653]
[1693928418164,7.658,20.369,20.358,7.662]
[1693928418346,55.0,20.368,20.358,7.662]
[1693928419559,55.0,20.368,20.359,0.5651185]
[1693928419760,62.658,20.37,20.359,0.5651185]
[1693928419954,62.658,20.37,20.354,1.65392822]
[1693928420950,62.658,20.37,20.357,7.663]
[1693928421352,62.658,20.37,20.358,0.95164826]
[1693928421554,62.658,20.37,20.359,7.662]
[1693928423462,55.0,20.37,20.359,7.662]
[1693928425170,62.658,20.37,20.359,7.662]
[1693928427651,63.87206633,20.377,20.359,7.662]
[1693928427973,7.656,20.376,20.36,1.60257139]
[1693928428163,7.656,20.376,20.365,7.66]
[1693928428556,7.654,20.381,20.365,7.66]
[1693928428758,0.7295797,20.385,20.366,1.60257139]
[1693928428978,7.654,20.382,20.37,7.657]
[1693928429465,0.55540775,20.381,20.37,7.657]
[1693928429869,8.20940775,20.381,20.37,7.657]
[1693928430061,7.654,20.381,20.37,7.657]
[1693928430456,38.4078624,20.385,20.37,7.657]
[1693928430662,1.69016854,20.384,20.37,7.657]
[1693928430864,7.653,20.383,20.37,7.657]
[1693928431070,1.69016854,20.382,20.37,7.657]
[1693928431765,7.652,20.385,20.37,7.657]
[1693928431972,7.652,20.385,20.37,32.52066537]
[1693928432156,91.9425,20.388,20.371,0.54463163]
[1693928432357,1.10369704,20.387,20.376,7.656]
[1693928432575,1.10369704,20.387,20.371,0.54463163]
[1693928432770,7.653,20.383,20.371,7.657]
[1693928433770,55.0,20.382,20.371,7.657]
[1693928433969,91.9425,20.388,20.371,7.657]
[1693928433970,7.653,20.383,20.371,7.657]
[1693928435961,7.652,20.385,20.371,7.657]
[1693928436160,55.0,20.384,20.371,7.657]
[1693928436365,39.37555227,20.385,20.371,7.657]
[1693928436576,91.9425,20.388,20.371,7.657]
[1693928436577,91.9425,20.388,20.372,20.0]
[1693928436868,91.9425,20.388,20.376,7.655]
[1693928437755,55.0,20.387,20.376,7.655]
[1693928438160,62.652,20.387,20.376,7.655]
[1693928438562,55.0,20.387,20.376,7.655]
[1693928440969,7.652,20.386,20.376,7.655]
[1693928441168,55.0,20.385,20.376,7.655]
[1693928441681,55.0,20.387,20.376,7.655]
[1693928441977,62.652,20.387,20.376,7.655]
[1693928442272,87.373,20.387,20.365,54.013]
[1693928442479,2.27267682,20.386,20.366,0.90144086]
[1693928442777,7.654,20.381,20.369,7.658]
[1693928442976,55.0,20.38,20.366,7.659]
[1693928443171,7.656,20.376,20.364,7.66]
[1693928443377,7.656,20.376,20.365,20.0]
[1693928443568,7.656,20.376,20.365,7.659]
[1693928445076,55.0,20.375,20.362,7.66]
[1693928445277,8.48064277,20.374,20.363,20.0]
[1693928445573,7.657,20.374,20.363,27.66]
[1693928447077,55.0,20.375,20.363,7.66]
[1693928447277,0.5561189,20.374,20.363,7.66]
[1693928447482,55.0,20.375,20.363,7.66]
[1693928447676,55.0,20.376,20.363,7.66]
[1693928447876,0.60097852,20.375,20.363,7.66]
[1693928448078,98.7931,20.379,20.363,7.66]
[1693928448281,98.7931,20.379,20.364,0.83138586]
[1693928448479,98.7931,20.379,20.368,7.658]
[1693928448890,137.22532003,20.379,20.368,7.658]
[1693928449476,55.0,20.378,20.368,7.658]
[1693928451285,137.22532003,20.379,20.368,7.658]
[1693928451286,91.1391,20.379,20.368,7.658]
[1693928451474,0.74207,20.393,20.369,0.83104062]
[1693928451674,7.651,20.388,20.376,7.655]
[1693928451872,7.65,20.39,20.376,7.655]
[1693928452090,40.50631361,20.393,20.376,7.655]
[1693928452091,48.15631361,20.393,20.376,7.655]
[1693928452875,48.15631361,20.393,20.376,32.51866537]
[1693928453187,48.15631361,20.393,20.381,7.653]
[1693928453388,7.648,20.395,20.381,7.653]
[1693928453584,53.985,20.404,20.381,7.653]
[1693928453585,53.985,20.404,20.382,0.86400646]
[1693928453789,1.86278053,20.403,20.388,32.37]
[1693928454090,7.646,20.402,20.389,0.86400646]
[1693928454301,7.646,20.402,20.39,7.65]
[1693928454686,0.50678915,20.401,20.387,7.651]
[1693928455086,7.646,20.403,20.387,7.651]
[1693928455592,7.647,20.4,20.387,7.651]
[1693928456595,7.647,20.4,20.385,7.652]
[1693928456892,2.59508383,20.399,20.385,7.652]
[1693928457393,2.59508383,20.397,20.378,7.655]
[1693928457576,7.65,20.392,20.378,7.655]
[1693928457772,128.926,20.399,20.375,0.74939633]
[1693928457773,2.59508383,20.398,20.375,0.74939633]
[1693928457988,7.649,20.394,20.379,0.88472024]
[1693928458193,7.648,20.397,20.383,7.653]
[1693928458391,75.0,20.399,20.383,7.653]
[1693928458392,9.56342301,20.395,20.383,7.653]
[1693928458600,9.56342301,20.395,20.381,7.654]
[1693928458781,55.0,20.394,20.381,7.654]
[1693928459099,1.91442301,20.394,20.381,7.654]
[1693928459306,56.91442301,20.394,20.381,7.654]
[1693928459682,55.0,20.394,20.381,7.654]
[1693928459984,7.65,20.392,20.376,1.1278832]
[1693928460179,7.651,20.39,20.376,1.1278832]
[1693928460374,7.651,20.39,20.376,7.655]
[1693928460577,55.0,20.389,20.37,24.86366537]
[1693928460776,7.652,20.386,20.372,1.26057758]
[1693928461081,7.652,20.386,20.372,8.91757758]
[1693928461288,7.652,20.386,20.373,20.0]
[1693928461289,55.0,20.385,20.373,20.0]
[1693928461692,55.0,20.385,20.373,27.656]
[1693928461895,7.653,20.384,20.373,20.0]
[1693928462093,7.653,20.384,20.366,24.86366537]
[1693928462296,7.653,20.384,20.352,250.0]
[1693928462297,55.5697929,20.383,20.367,1.10212718]
[1693928462495,7.655,20.379,20.365,20.0]
[1693928463893,55.0,20.382,20.369,7.658]
[1693928464277,0.64268283,20.383,20.369,7.658]
[1693928464478,7.653,20.384,20.369,7.658]
[1693928464792,7.653,20.383,20.369,7.658]
[1693928465295,7.654,20.38,20.368,7.658]
[1693928465480,1.74358888,20.384,20.368,7.658]
[1693928465684,1.95888352,20.386,20.369,0.75472438]
[1693928466003,7.654,20.381,20.366,7.659]
[1693928466300,7.656,20.376,20.364,24.86366537]
[1693928466494,7.656,20.376,20.363,7.66]